fUSD/lending_fUSD_20240814
["ID","MTS","AMOUNT","RATE_DAILY","PERIOD"]
[334870146,1723620658026,-500.0,0.00014246,2]
[334870147,1723620658035,-502.3,0.00014246,2]
[334870148,1723620658046,-500.0,0.00014246,2]
[334870149,1723620658057,-500.0,0.00014246,2]
[334870150,1723620658068,-500.0,0.00014246,2]
[334870151,1723620658077,-500.0,0.00014246,2]
[334870152,1723620658087,-500.0,0.00014246,2]
[334870153,1723620658096,-151.0,0.00014246,2]
[334870154,1723620658106,-500.0,0.00014246,2]
[334870155,1723620658116,-500.0,0.00014246,2]
[334870156,1723620658127,-500.0,0.00014246,2]
[334870157,1723620658137,-500.0,0.00014246,2]
[334870158,1723620658147,-254.16344,0.00014246,2]
[334870159,1723620658157,-611.44972015,0.00014246,2]
[334870160,1723620658167,-500.0,0.00014246,2]
[334870161,1723620658177,-500.0,0.00014246,2]
[334870162,1723620658187,-169.736676,0.00014246,2]
[334870163,1723620658197,-500.0,0.00014246,2]
[334870164,1723620658208,-500.0,0.00014246,2]
[334870165,1723620658218,-500.0,0.00014246,2]
[334870166,1723620658229,-169.736676,0.00014246,2]
[334870167,1723620658239,-500.0,0.00014246,2]
[334870168,1723620658249,-500.0,0.00014246,2]
[334870169,1723620658259,-500.0,0.00014246,2]
[334870170,1723620658270,-500.0,0.00014246,2]
[334870171,1723620658280,-500.0,0.00014246,2]
[334870172,1723620658289,-500.0,0.00014246,2]
[334870173,1723620658299,-500.0,0.00014246,2]
[334870174,1723620658308,-500.0,0.00014246,2]
[334870175,1723620658318,-500.0,0.00014246,2]
[334870176,1723620658327,-500.0,0.00014246,2]
[334870177,1723620658337,-500.0,0.00014246,2]
[334870178,1723620658347,-500.0,0.00014246,2]
[334870179,1723620658356,-500.0,0.00014246,2]
[334870180,1723620658366,-862.74,0.00014246,2]
[334870181,1723620658376,-500.0,0.00014246,2]
[334870182,1723620658386,-636.18950501,0.00014246,2]
[334870183,1723620658396,-500.0,0.00014246,2]
[334870184,1723620658406,-412.8,0.00014246,2]
[334870185,1723620658419,-500.0,0.00014246,2]
[334870186,1723620658429,-552.06,0.00014246,2]
[334870187,1723620658439,-500.0,0.00014246,2]
[334870188,1723620658449,-500.0,0.00014246,2]
[334870189,1723620658460,-182.02442903,0.00014246,2]
[334870190,1723620658470,-500.0,0.00014246,2]
[334870191,1723620658480,-648.18,0.00014246,2]
[334870192,1723620658491,-860.96,0.00014246,2]
[334870193,1723620658501,-500.0,0.00014246,2]
[334870194,1723620658510,-500.0,0.00014246,2]
[334870195,1723620658520,-1377.93,0.00014246,2]
[334870196,1723620658533,-500.0,0.00014246,2]
[334870197,1723620658543,-1553.5,0.00014246,2]
[334870198,1723620658553,-500.0,0.00014246,2]
[334870199,1723620658563,-500.0,0.00014246,2]
[334870200,1723620658572,-875.79,0.00014246,2]
[334870201,1723620658583,-500.0,0.00014246,2]
[334870202,1723620658593,-500.0,0.00014246,2]
[334870203,1723620658780,-500.0,0.00014246,2]
[334870204,1723620658790,-500.0,0.00014246,2]
[334870205,1723620658800,-500.0,0.00014246,2]
[334870206,1723620658810,-500.0,0.00014246,2]
[334870207,1723620658821,-517.31,0.00014246,2]
[334870208,1723620658831,-500.0,0.00014246,2]
[334870209,1723620658843,-802.23,0.00014246,2]
[334870210,1723620658852,-500.0,0.00014246,2]
[334870211,1723620658862,-577.94,0.00014246,2]
[334870212,1723620658872,-500.0,0.00014246,2]
[334870213,1723620658882,-500.0,0.00014246,2]
[334870214,1723620658891,-557.73,0.00014246,2]
[334870215,1723620658901,-321.62608182,0.00014246,2]
[334870216,1723620658911,-500.0,0.00014246,2]
[334870217,1723620658922,-500.0,0.00014246,2]
[334870218,1723620658933,-151.0,0.00014246,2]
[334870219,1723620658943,-500.0,0.00014246,2]
[334870220,1723620658952,-500.0,0.00014246,2]
[334870221,1723620658962,-575.4,0.00014246,2]
[334870222,1723620658971,-603.71,0.00014246,2]
[334870223,1723620658981,-500.0,0.00014246,2]
[334870224,1723620658990,-583.2,0.00014246,2]
[334870225,1723620658999,-500.0,0.00014246,2]
[334870226,1723620659008,-659.68,0.00014246,2]
[334870227,1723620659018,-500.0,0.00014246,2]
[334870228,1723620659027,-500.0,0.00014246,2]
[334870229,1723620659036,-501.07,0.00014246,2]
[334870230,1723620659046,-500.0,0.00014246,2]
[334870231,1723620659055,-500.0,0.00014246,2]
[334870232,1723620659064,-500.0,0.00014246,2]
[334870233,1723620659073,-500.0,0.00014246,2]
[334870234,1723620659083,-509.16,0.00014246,2]
[334870235,1723620659094,-500.0,0.00014246,2]
[334870236,1723620659103,-642.16,0.00014246,2]
[334870237,1723620659112,-542.76,0.00014246,2]
[334870238,1723620659121,-500.0,0.00014246,2]
[334870239,1723620659130,-500.0,0.00014246,2]
[334870240,1723620659140,-500.0,0.00014246,2]
[334870241,1723620659149,-500.0,0.00014246,2]
[334870242,1723620659159,-714.09,0.00014246,2]
[334870243,1723620659168,-500.0,0.00014246,2]
[334870244,1723620659177,-500.0,0.00014246,2]
[334870245,1723620659187,-1105.55,0.00014246,2]
[334870246,1723620659196,-646.97,0.00014246,2]
[334870247,1723620659206,-1302.61,0.00014246,2]
[334870248,1723620659215,-4230.22,0.00014246,2]
[334870249,1723620659225,-500.0,0.00014246,2]
[334870250,1723620659234,-500.0,0.00014246,2]
[334870251,1723620659243,-500.0,0.00014246,2]
[334870252,1723620659253,-1927.63,0.00014246,2]
[334870253,1723620659262,-538.83,0.00014246,2]
[334870254,1723620659271,-151.0,0.00014246,2]
[334870255,1723620659281,-500.0,0.00014246,2]
[334870256,1723620659290,-3771.24,0.00014246,2]
[334870257,1723620659299,-500.0,0.00014246,2]
[334870258,1723620659308,-500.0,0.00014246,2]
[334870259,1723620659318,-500.0,0.00014246,2]
[334870260,1723620659327,-2583.53,0.00014246,2]
[334870261,1723620659336,-151.0,0.00014246,2]
[334870262,1723620659347,-589.05,0.00014246,2]
[334870263,1723620659364,-500.0,0.00014246,2]
[334870264,1723620659373,-638.08,0.00014246,2]
[334870265,1723620659383,-705.12,0.00014246,2]
[334870266,1723620659392,-500.0,0.00014246,2]
[334870267,1723620659401,-1567.35,0.00014246,2]
[334870268,1723620659411,-2757.25,0.00014246,2]
[334870269,1723620659423,-5777.23,0.00014246,2]
[334870270,1723620659432,-642.62,0.00014246,2]
[334870271,1723620659442,-12612.61,0.00014246,2]
[334870272,1723620659451,-500.0,0.00014246,2]
[334870273,1723620659460,-500.0,0.00014246,2]
[334870274,1723620659470,-500.0,0.00014246,2]
[334870275,1723620659480,-724.19,0.00014246,2]
[334870276,1723620659489,-675.15,0.00014246,2]
[334870277,1723620659500,-2454.92,0.00014246,2]
[334870278,1723620659511,-3995.99,0.00014246,2]
[334870279,1723620659521,-699.56,0.00014246,2]
[334870280,1723620659532,-1562.13,0.00014246,2]
[334870281,1723620659541,-500.0,0.00014246,2]
[334870282,1723620659551,-500.0,0.00014246,2]
[334870283,1723620659560,-1021.09,0.00014246,2]
[334870284,1723620659569,-151.0,0.00014246,2]
[334870285,1723620659579,-708.56,0.00014246,2]
[334870286,1723620659589,-500.0,0.00014246,2]
[334870287,1723620659599,-716.38,0.00014246,2]
[334870288,1723620659609,-1012.52,0.00014246,2]
[334870289,1723620659618,-500.0,0.00014246,2]
[334870290,1723620659628,-500.0,0.00014246,2]
[334870291,1723620659637,-151.0,0.00014246,2]
[334870292,1723620659647,-500.0,0.00014246,2]
[334870293,1723620659656,-1574.06,0.00014246,2]
[334870294,1723620659666,-500.0,0.00014246,2]
[334870295,1723620659675,-650.58,0.00014246,2]
[334870296,1723620659685,-590.62,0.00014246,2]
[334870297,1723620659694,-4431.9,0.00014246,2]
[334870298,1723620659703,-777.75,0.00014246,2]
[334870299,1723620659713,-500.0,0.00014246,2]
[334870300,1723620659722,-500.0,0.00014246,2]
[334870301,1723620659731,-500.0,0.00014246,2]
[334870302,1723620659741,-500.0,0.00014246,2]
[334870303,1723620659750,-500.0,0.00014246,2]
[334870304,1723620659761,-626.17,0.00014246,2]
[334870305,1723620659770,-1296.7,0.00014246,2]
[334870306,1723620659780,-500.0,0.00014246,2]
[334870307,1723620659789,-3542.6,0.00014246,2]
[334870308,1723620659799,-35269.02,0.00014246,2]
[334870309,1723620659808,-561.92,0.00014246,2]
[334870310,1723620659817,-204.194184,0.00014246,2]
[334870311,1723620659826,-743.95,0.00014246,2]
[334870312,1723620659835,-3665.95,0.00014246,2]
[334870313,1723620659845,-763.73,0.00014246,2]
[334870314,1723620659854,-500.0,0.00014246,2]
[334870315,1723620659863,-500.0,0.00014246,2]
[334870316,1723620659874,-1584.45,0.00014246,2]
[334870317,1723620659883,-500.0,0.00014246,2]
[334870318,1723620659893,-849.11,0.00014246,2]
[334870319,1723620659903,-500.0,0.00014246,2]
[334870320,1723620659912,-500.0,0.00014246,2]
[334870321,1723620659923,-500.0,0.00014246,2]
[334870322,1723620659934,-3814.92,0.00014246,2]
[334870323,1723620659944,-977.72,0.00014246,2]
[334870324,1723620659954,-1423.61,0.00014246,2]
[334870325,1723620659964,-1036.45,0.00014246,2]
[334870326,1723620659973,-151.0,0.00014246,2]
[334870327,1723620659984,-1638.4,0.00014246,2]
[334870328,1723620659995,-875.75,0.00014246,2]
[334870329,1723620660005,-3123.04,0.00014246,2]
[334870330,1723620660015,-500.0,0.00014246,2]
[334870331,1723620660024,-203.69,0.00014246,2]
[334870332,1723620660034,-267.820938,0.00014246,2]
[334870333,1723620660043,-4390.31,0.00014246,2]
[334870334,1723620660054,-500.0,0.00014246,2]
[334870335,1723620660063,-500.0,0.00014246,2]
[334870336,1723620660073,-345.908315,0.00014246,2]
[334870337,1723620660083,-500.0,0.00014246,2]
[334870338,1723620660092,-1041.59,0.00014246,2]
[334870339,1723620660101,-500.0,0.00014246,2]
[334870340,1723620660111,-345.908315,0.00014246,2]
[334870341,1723620660120,-2253.8,0.00014246,2]
[334870342,1723620660130,-2098.0,0.00014246,2]
[334870343,1723620660139,-500.0,0.00014246,2]
[334870344,1723620660150,-500.0,0.00014246,2]
[334870345,1723620660159,-672.57,0.00014246,2]
[334870346,1723620660168,-1025.9,0.00014246,2]
[334870347,1723620660178,-500.0,0.00014246,2]
[334870348,1723620660187,-500.0,0.00014246,2]
[334870349,1723620660197,-500.0,0.00014246,2]
[334870350,1723620660206,-500.0,0.00014246,2]
[334870351,1723620660216,-1015.73,0.00014246,2]
[334870352,1723620660225,-500.0,0.00014246,2]
[334870353,1723620660235,-1149.64,0.00014246,2]
[334870354,1723620660244,-500.0,0.00014246,2]
[334870355,1723620660255,-500.0,0.00014246,2]
[334870356,1723620660264,-500.0,0.00014246,2]
[334870357,1723620660274,-1020.09,0.00014246,2]
[334870358,1723620660283,-500.0,0.00014246,2]
[334870359,1723620660293,-500.0,0.00014246,2]
[334870360,1723620660303,-637.53,0.00014246,2]
[334870361,1723620660313,-500.0,0.00014246,2]
[334870362,1723620660323,-500.0,0.00014246,2]
[334870363,1723620660333,-624.49705571,0.00014246,2]
[334870364,1723620660342,-500.0,0.00014246,2]
[334870365,1723620660352,-500.0,0.00014246,2]
[334870366,1723620660362,-500.0,0.00014246,2]
[334870367,1723620660371,-500.0,0.00014246,2]
[334870368,1723620660381,-598.95,0.00014246,2]
[334870369,1723620660390,-500.0,0.00014246,2]
[334870370,1723620660399,-3408.8,0.00014246,2]
[334870371,1723620660409,-500.0,0.00014246,2]
[334870372,1723620660420,-500.0,0.00014246,2]
[334870373,1723620660433,-1220.39,0.00014246,2]
[334870374,1723620660442,-500.0,0.00014246,2]
[334870375,1723620660453,-500.0,0.00014246,2]
[334870376,1723620660463,-507.64798503,0.00014246,2]
[334870377,1723620660472,-828.63,0.00014246,2]
[334870378,1723620660482,-1276.97,0.00014246,2]
[334870379,1723620660492,-5042.49,0.00014246,2]
[334870380,1723620660501,-500.0,0.00014246,2]
[334870381,1723620660511,-500.0,0.00014246,2]
[334870382,1723620660521,-648.84,0.00014246,2]
[334870383,1723620660531,-849.43,0.00014246,2]
[334870384,1723620660540,-428.24942053,0.00014246,2]
[334870385,1723620660550,-697.5,0.00014246,2]
[334870386,1723620660560,-1088.84,0.00014246,2]
[334870387,1723620660570,-1178.52,0.00014246,2]
[334870388,1723620660579,-500.0,0.00014246,2]
[334870389,1723620660589,-690.09,0.00014246,2]
[334870390,1723620660601,-618.66,0.00014246,2]
[334870391,1723620660610,-866.59,0.00014246,2]
[334870392,1723620660619,-500.0,0.00014246,2]
[334870393,1723620660629,-1000.0,0.00014246,2]
[334870394,1723620660639,-151.0,0.00014246,2]
[334870395,1723620660648,-2098.19,0.00014246,2]
[334870396,1723620660658,-500.0,0.00014246,2]
[334870397,1723620660667,-500.0,0.00014246,2]
[334870398,1723620660677,-1000.0,0.00014246,2]
[334870399,1723620660686,-1862.93,0.00014246,2]
[334870400,1723620660695,-536.05,0.00014246,2]
[334870401,1723620660705,-1026.42,0.00014246,2]
[334870402,1723620660714,-151.0,0.00014246,2]
[334870403,1723620660724,-770.83,0.00014246,2]
[334870404,1723620660733,-500.0,0.00014246,2]
[334870405,1723620660743,-460.28563312,0.00014246,2]
[334870406,1723620660753,-500.0,0.00014246,2]
[334870407,1723620660762,-2022.99,0.00014246,2]
[334870408,1723620660771,-926.67,0.00014246,2]
[334870409,1723620660780,-1308.09,0.00014246,2]
[334870410,1723620660789,-500.0,0.00014246,2]
[334870411,1723620660799,-707.31,0.00014246,2]
[334870412,1723620660809,-500.0,0.00014246,2]
[334870413,1723620660818,-1018.12,0.00014246,2]
[334870414,1723620660827,-1029.55,0.00014246,2]
[334870415,1723620660837,-500.0,0.00014246,2]
[334870416,1723620660846,-554.63,0.00014246,2]
[334870417,1723620660856,-500.0,0.00014246,2]
[334870418,1723620660866,-500.0,0.00014246,2]
[334870419,1723620660875,-1038.94,0.00014246,2]
[334870420,1723620660887,-853.95,0.00014246,2]
[334870421,1723620660897,-500.0,0.00014246,2]
[334870422,1723620660907,-500.0,0.00014246,2]
[334870423,1723620660916,-500.0,0.00014246,2]
[334870424,1723620660926,-500.0,0.00014246,2]
[334870425,1723620660936,-500.0,0.00014246,2]
[334870426,1723620660946,-500.0,0.00014246,2]
[334870427,1723620660956,-500.0,0.00014246,2]
[334870428,1723620660966,-500.0,0.00014246,2]
[334870429,1723620660975,-500.0,0.00014246,2]
[334870430,1723620660985,-1710.08,0.00014246,2]
[334870431,1723620660995,-500.0,0.00014246,2]
[334870432,1723620661006,-691.25,0.00014246,2]
[334870433,1723620661016,-500.0,0.00014246,2]
[334870434,1723620661025,-500.0,0.00014246,2]
[334870435,1723620661036,-201.989764,0.00014246,2]
[334870436,1723620661045,-1036.3,0.00014246,2]
[334870437,1723620661055,-1094.21,0.00014246,2]
[334870438,1723620661065,-500.0,0.00014246,2]
[334870439,1723620661130,-151.0,0.00014246,2]
[334870440,1723620661139,-1184.35,0.00014246,2]
[334870441,1723620661148,-500.0,0.00014246,2]
[334870442,1723620661158,-564.31742615,0.00014246,2]
[334870443,1723620661167,-500.0,0.00014246,2]
[334870444,1723620661176,-500.0,0.00014246,2]
[334870445,1723620661185,-664.34,0.00014246,2]
[334870446,1723620661195,-500.0,0.00014246,2]
[334870447,1723620661203,-556.8,0.00014246,2]
[334870448,1723620661213,-1873.52,0.00014246,2]
[334870449,1723620661222,-500.0,0.00014246,2]
[334870450,1723620661231,-500.0,0.00014246,2]
[334870451,1723620661241,-500.0,0.00014246,2]
[334870452,1723620661250,-1573.93,0.00014246,2]
[334870453,1723620661259,-500.0,0.00014246,2]
[334870454,1723620661269,-975.68,0.00014246,2]
[334870455,1723620661278,-3644.0,0.00014246,2]
[334870456,1723620661287,-500.0,0.00014246,2]
[334870457,1723620661297,-500.0,0.00014246,2]
[334870458,1723620661306,-500.0,0.00014246,2]
[334870459,1723620661317,-1757.08,0.00014246,2]
[334870460,1723620661326,-1512.55,0.00014246,2]
[334870461,1723620661335,-500.0,0.00014246,2]
[334870462,1723620661345,-500.0,0.00014246,2]
[334870463,1723620661355,-2217.29,0.00014246,2]
[334870464,1723620661364,-500.0,0.00014246,2]
[334870465,1723620661374,-723.59,0.00014246,2]
[334870466,1723620661383,-741.89,0.00014246,2]
[334870467,1723620661394,-829.58,0.00014246,2]
[334870468,1723620661404,-529.95,0.00014246,2]
[334870469,1723620661414,-500.0,0.00014246,2]
[334870470,1723620661425,-530.92,0.00014246,2]
[334870471,1723620661434,-598.22,0.00014246,2]
[334870472,1723620661443,-500.0,0.00014246,2]
[334870473,1723620661453,-686.51,0.00014246,2]
[334870474,1723620661464,-500.0,0.00014246,2]
[334870475,1723620661473,-500.0,0.00014246,2]
[334870476,1723620661483,-770.24,0.00014246,2]
[334870477,1723620661493,-737.04,0.00014246,2]
[334870478,1723620661502,-500.0,0.00014246,2]
[334870479,1723620661512,-561.79,0.00014246,2]
[334870480,1723620661521,-826.62,0.00014246,2]
[334870481,1723620661531,-916.91,0.00014246,2]
[334870482,1723620661541,-492.20232767,0.00014246,2]
[334870483,1723620661550,-1114.22,0.00014246,2]
[334870484,1723620661560,-551.30349539,0.00014246,2]
[334870485,1723620661569,-1356.07,0.00014246,2]
[334870486,1723620661580,-500.0,0.00014246,2]
[334870487,1723620661589,-500.0,0.00014246,2]
[334870488,1723620661599,-1189.45,0.00014246,2]
[334870489,1723620661609,-500.0,0.00014246,2]
[334870490,1723620661619,-500.0,0.00014246,2]
[334870491,1723620661629,-500.0,0.00014246,2]
[334870492,1723620661639,-747.49,0.00014246,2]
[334870493,1723620661648,-500.0,0.00014246,2]
[334870494,1723620661658,-500.0,0.00014246,2]
[334870495,1723620661667,-500.0,0.00014246,2]
[334870496,1723620661676,-3005.06,0.00014246,2]
[334870497,1723620661686,-500.0,0.00014246,2]
[334870498,1723620661696,-1128.02,0.00014246,2]
[334870499,1723620661705,-500.0,0.00014246,2]
[334870500,1723620661714,-200.0,0.00014273,2]
[334870501,1723620661724,-214.0,0.0001436,2]
[334870502,1723620661733,-655.04957369,0.00014443,2]
[334870503,1723620661743,-227.29489199,0.00014443,2]
[334870504,1723620661752,-150.0,0.0001446,2]
[334870505,1723620661762,-842.18,0.00014466,2]
[334870506,1723620661771,-1069.4,0.00014519,2]
[334870507,1723620661781,-154.515367,0.0001452,2]
[334870508,1723620661790,-500.0,0.0001452,2]
[334870509,1723620661800,-500.0,0.0001452,2]
[334870510,1723620661810,-151.0,0.0001452,2]
[334870511,1723620661820,-500.0,0.0001452,2]
[334870512,1723620661830,-500.0,0.0001452,2]
[334870513,1723620661839,-500.0,0.0001452,2]
[334870514,1723620661851,-500.0,0.0001452,2]
[334870515,1723620661861,-500.0,0.0001452,2]
[334870516,1723620661871,-500.0,0.0001452,2]
[334870517,1723620661879,-197.47338136,0.0001452,2]
[334870518,1723620661888,-560.85,0.0001452,2]
[334870519,1723620661898,-500.0,0.0001452,2]
[334870520,1723620661908,-500.0,0.0001452,2]
[334870521,1723620661918,-500.0,0.0001452,2]
[334870522,1723620661927,-500.0,0.0001452,2]
[334870523,1723620661937,-500.0,0.0001452,2]
[334870524,1723620661946,-500.0,0.0001452,2]
[334870525,1723620661955,-500.0,0.0001452,2]
[334870526,1723620661965,-610.01047449,0.0001452,2]
[334870527,1723620661974,-500.0,0.0001452,2]
[334870528,1723620661983,-510.54,0.0001452,2]
[334870529,1723620661993,-500.0,0.0001452,2]
[334870530,1723620662002,-560.91,0.0001452,2]
[334870531,1723620662011,-510.65,0.0001452,2]
[334870532,1723620662020,-500.0,0.0001452,2]
[334870533,1723620662030,-500.0,0.0001452,2]
[334870534,1723620662039,-500.0,0.0001452,2]
[334870535,1723620662048,-1141.96,0.0001452,2]
[334870536,1723620662057,-500.0,0.0001452,2]
[334870537,1723620662067,-500.0,0.0001452,2]
[334870538,1723620662076,-284.06466671,0.0001452,2]
[334870539,1723620662086,-500.0,0.0001452,2]
[334870540,1723620662095,-513.16,0.0001452,2]
[334870541,1723620662106,-500.0,0.0001452,2]
[334870542,1723620662115,-3147.98,0.0001452,2]
[334870543,1723620662124,-500.0,0.0001452,2]
[334870544,1723620662133,-500.0,0.0001452,2]
[334870545,1723620662143,-500.0,0.0001452,2]
[334870546,1723620662153,-500.0,0.0001452,2]
[334870547,1723620662163,-500.0,0.0001452,2]
[334870548,1723620662173,-500.0,0.0001452,2]
[334870549,1723620662183,-500.0,0.0001452,2]
[334870550,1723620662192,-500.0,0.0001452,2]
[334870551,1723620662202,-813.31,0.0001452,2]
[334870552,1723620662212,-650.43,0.0001452,2]
[334870553,1723620662222,-500.0,0.0001452,2]
[334870554,1723620662231,-525.21,0.0001452,2]
[334870555,1723620662241,-500.0,0.0001452,2]
[334870556,1723620662251,-500.0,0.0001452,2]
[334870557,1723620662261,-500.0,0.0001452,2]
[334870558,1723620662270,-500.0,0.0001452,2]
[334870559,1723620662280,-500.0,0.0001452,2]
[334870560,1723620662290,-500.0,0.0001452,2]
[334870561,1723620662300,-597.92,0.0001452,2]
[334870562,1723620662309,-500.0,0.0001452,2]
[334870563,1723620662319,-500.0,0.0001452,2]
[334870564,1723620662329,-500.0,0.0001452,2]
[334870565,1723620662338,-500.0,0.0001452,2]
[334870566,1723620662350,-500.0,0.0001452,2]
[334870567,1723620662360,-802.41,0.0001452,2]
[334870568,1723620662369,-500.0,0.0001452,2]
[334870569,1723620662379,-506.88,0.0001452,2]
[334870570,1723620662389,-921.35,0.0001452,2]
[334870571,1723620662398,-500.0,0.0001452,2]
[334870572,1723620662407,-801.76,0.0001452,2]
[334870573,1723620662419,-500.0,0.0001452,2]
[334870574,1723620662429,-500.0,0.0001452,2]
[334870575,1723620662438,-500.0,0.0001452,2]
[334870576,1723620662448,-512.5,0.0001452,2]
[334870577,1723620662458,-503.92,0.0001452,2]
[334870578,1723620662468,-151.0,0.0001452,2]
[334870579,1723620662478,-511.42,0.0001452,2]
[334870580,1723620662488,-151.0,0.0001452,2]
[334870581,1723620662499,-890.99,0.0001452,2]
[334870582,1723620662509,-641.13,0.0001452,2]
[334870583,1723620662519,-500.0,0.0001452,2]
[334870584,1723620662528,-500.0,0.0001452,2]
[334870585,1723620662538,-727.93,0.0001452,2]
[334870586,1723620662547,-662.34,0.0001452,2]
[334870587,1723620662557,-500.0,0.0001452,2]
[334870588,1723620662567,-292.08138614,0.0001452,2]
[334870589,1723620662575,-500.0,0.0001452,2]
[334870590,1723620662586,-500.0,0.0001452,2]
[334870591,1723620662596,-500.0,0.0001452,2]
[334870592,1723620662608,-500.0,0.0001452,2]
[334870593,1723620662618,-694.43,0.0001452,2]
[334870594,1723620662628,-500.0,0.0001452,2]
[334870595,1723620662638,-570.68,0.0001452,2]
[334870596,1723620662647,-500.0,0.0001452,2]
[334870597,1723620662656,-500.0,0.0001452,2]
[334870598,1723620662666,-151.0,0.0001452,2]
[334870599,1723620662676,-500.0,0.0001452,2]
[334870600,1723620662686,-500.0,0.0001452,2]
[334870601,1723620662695,-500.0,0.0001452,2]
[334870602,1723620662704,-500.0,0.0001452,2]
[334870603,1723620662714,-500.0,0.0001452,2]
[334870604,1723620662723,-1238.47,0.0001452,2]
[334870605,1723620662733,-500.0,0.0001452,2]
[334870606,1723620662743,-500.0,0.0001452,2]
[334870607,1723620662752,-500.0,0.0001452,2]
[334870608,1723620662762,-579.57,0.0001452,2]
[334870609,1723620662771,-500.0,0.0001452,2]
[334870610,1723620662781,-500.0,0.0001452,2]
[334870611,1723620662791,-500.0,0.0001452,2]
[334870612,1723620662800,-500.0,0.0001452,2]
[334870613,1723620662809,-500.0,0.0001452,2]
[334870614,1723620662818,-500.0,0.0001452,2]
[334870615,1723620662828,-1335.33,0.0001452,2]
[334870616,1723620662838,-151.0,0.0001452,2]
[334870617,1723620662849,-829.86,0.0001452,2]
[334870618,1723620662859,-190.541969,0.0001452,2]
[334870619,1723620662868,-190.541969,0.0001452,2]
[334870620,1723620662877,-500.0,0.0001452,2]
[334870621,1723620662887,-594.0,0.0001452,2]
[334870622,1723620662896,-500.0,0.0001452,2]
[334870623,1723620662906,-190.541969,0.0001452,2]
[334870624,1723620662916,-190.541969,0.0001452,2]
[334870625,1723620662925,-544.43,0.0001452,2]
[334870626,1723620662935,-500.0,0.0001452,2]
[334870627,1723620662946,-500.0,0.0001452,2]
[334870628,1723620662956,-500.0,0.0001452,2]
[334870629,1723620662965,-660.36,0.0001452,2]
[334870630,1723620662975,-500.0,0.0001452,2]
[334870631,1723620662984,-500.0,0.0001452,2]
[334870632,1723620662994,-500.0,0.0001452,2]
[334870633,1723620663003,-500.0,0.0001452,2]
[334870634,1723620663013,-500.0,0.0001452,2]
[334870635,1723620663023,-1025.59,0.0001452,2]
[334870636,1723620663032,-500.0,0.0001452,2]
[334870637,1723620663042,-500.0,0.0001452,2]
[334870638,1723620663052,-500.0,0.0001452,2]
[334870639,1723620663061,-500.0,0.0001452,2]
[334870640,1723620663071,-500.0,0.0001452,2]
[334870641,1723620663080,-975.8,0.0001452,2]
[334870642,1723620663090,-500.0,0.0001452,2]
[334870643,1723620663102,-500.0,0.0001452,2]
[334870644,1723620663115,-500.0,0.0001452,2]
[334870645,1723620663125,-516.14,0.0001452,2]